Workbook

Sheet (KNY)könyvvizsgálói nyilatkozat
A1: Egy példányban kitöltve, eredeti aláírással és bélyegzéssel ellátva kell benyújtani. | E1: Formanyomtatvány pénzügyi elszámoláshoz
A2: A táblázat adatai a többi munkalapról automatikusan bemásolódnak!
A4: Kedvezményezett neve: | B4: XY Kft.
A5: Szerződésszám: | B5: 2018-1.1.1-VKE-2018-00001
A6: Az elszámolással érintett időszak kezdete és vége: | B6: 2018-12-31
C10: N Y I L A T K O Z A T
C11: (a kedvezményezett tölti ki)
A14: Alulírott <név>, mint a <kedvezményezett megnevezése> társaság/szervezet cégjegyzésre jogosult vezetője teljes jogi felelősséggel nyilatkozom, hogy a fenti támogatási szerződés alapján a szakmai és pénzügyi beszámolóra vonatkozó előírások szerint a támogatás és a saját/egyéb forrás felhasználásáról, valamint a kamatok tekintetében teljes körű, elkülönített nyilvántartást vezetek. Az elszámolni kívánt költségek az adott projektre vonatkozó tárgyi és időbeli elszámolhatósági szabályokkal összhangban, számlákkal vagy egyéb a költséget igazoló számviteli bizonylatokkal alátámasztva, teljesítésigazolás mellett kerültek felhasználásra és azokra további EU-s vagy egyéb hazai támogatás nem került elszámolásra. A szerződés melléklete alapján, a számlaösszesítőkben feltüntetett részfeladatok teljesítése során keletkezett ráfordítások összege < összeg számmal Ft-ban> Ft azaz <összeg betűvel Ft-ban>, az alábbi forrásonként és jogcímenként kerülnek elszámolásra. A kimutatott ráfordítások a szerződésben vállalt célok megvalósítása érdekében merültek fel.
A17: Költségtípusok | B17: Támogatás (Ft) | C17: Saját forrás (Ft) | D17: Egyéb forrás (Ft) | E17: Összesen (Ft)
A18: 54. Személyi juttatások | B18: =+'(54-56) személyi+járulék'!N26 -> 7100 | C18: =+'(54-56) személyi+járulék'!O26 -> 0 | D18: =+'(54-56) személyi+járulék'!P26 -> 0 | E18: =SUM(B18:D18) -> 7100
A19: 56. Munkaadókat terhelő járulékok | B19: =+'(54-56) személyi+járulék'!Q26 -> 2200 | C19: =+'(54-56) személyi+járulék'!R26 -> 0 | D19: =+'(54-56) személyi+járulék'!S26 -> 0 | E19: 2200
A20: 51. Anyagköltség | B20: =+'(51) anyagköltség '!L28 -> 500 | C20: =+'(51) anyagköltség '!M28 -> 500 | D20: =+'(51) anyagköltség '!N28 -> 0 | E20: 1000
A21: 52. Igénybe vett szolgáltatások | B21: =+'(52) igénybe vett szolg'!L28 -> 500 | C21: =+'(52) igénybe vett szolg'!M28 -> 500 | D21: =+'(52) igénybe vett szolg'!N28 -> 0 | E21: 1000
A22: 53. Egyéb szolgáltatások | B22: =+'(53) egyéb szolgáltatások'!L25 -> 500 | C22: =+'(53) egyéb szolgáltatások'!M25 -> 500 | D22: =+'(53) egyéb szolgáltatások'!N25 -> 0 | E22: 1000
A23: 11. Immateriális javak | B23: =+'(11) immat jav beszerz'!O27 -> 500 | C23: =+'(11) immat jav beszerz'!P27 -> 500 | D23: =+'(11) immat jav beszerz'!Q27 -> 0 | E23: 1000
A24: 13. Műszaki gépek berendezések, járművek | B24: =+'(13) műszaki berendezések'!O27 -> 500 | C24: =+'(13) műszaki berendezések'!P27 -> 500 | D24: =+'(13) műszaki berendezések'!Q27 -> 0 | E24: 1000
A25: 14. Egyéb berendezések, felszerelések, járművek | B25: =+'(14) egyéb berendezések'!O27 -> 500 | C25: =+'(14) egyéb berendezések'!P27 -> 500 | D25: =+'(14) egyéb berendezések'!Q27 -> 0 | E25: 1000
A26: 16. Beruházások, felújítások | B26: =+'(16) beruházás,felújítás'!O27 -> 500 | C26: =+'(16) beruházás,felújítás'!P27 -> 500 | D26: =+'(16) beruházás,felújítás'!Q27 -> 0 | E26: 1000
A27: Összesen: | B27: =SUM(B18:B26) -> 12800 | C27: =SUM(C18:C26) -> 3500 | D27: 0 | E27: =SUM(E18:E26) -> 16300
A29: ………………………., …………év …………….hó …….nap.
D32: …………………………
C33: Kedvezményezett képviseletére jogosult vezető aláírása*
D34: PH.
A36: Alulírott <név>, mint a <kedvezményezett megnevezése> társaság/szervezet (megbízott) könyvvizsgálója, és <név>, mint a <kedvezményezett megnevezése> társaság/szervezet gazdasági vezetője igazolom, hogy a fenti adatok a <kedvezményezett megnevezése> társaság/szervezet elkülönített számviteli nyilvántartásával megegyeznek.
A38: ………………………., ……….év ………………hó ……nap.
B41: ………………………… | E41: …………………………
B42: gazdasági vezető aláírása* | E42: könyvvizsgáló aláírása*
E43: Könyvvizsgálói Kamaránál nyilvántartott bejegyzési szám: …………………….
A46: * Az aláírók nevét nyomtatott betűkkel is kérjük kitölteni.

Sheet (54-56) személyi+járulék
A1: Kedvezményezett neve: | G1: =+'(KNY)könyvvizsgálói nyilatkozat'!$B4 -> XY Kft.
A2: Szerződésszám: | G2: =+'(KNY)könyvvizsgálói nyilatkozat'!$B5 -> 2018-1.1.1-VKE-2018-00001
A3: Mérföldkő dátuma:: | G3: =+'(KNY)könyvvizsgálói nyilatkozat'!$B6 -> 2018-12-31
A5: 54 -56 SZEMÉLYI JUTTATÁSOK ÉS JÁRULÉKAI
A7: Projektben résztvevő dolgozók | C7: Az elszámolt időszak | E7: Az adott hónapban a projektre elszámolt munka-órák száma* | F7: Pénzügyi teljesítés időpontja | G7: Állandó dolgozó (Á), vagy megbí-zásos dolgozó (M) (legördülő menű) | H7: Projektre elszámolt bruttó bér (Ft) | K7: Projektre elszámolt egyéb juttatások (Ft) (pld. napidíj, stb.) | N7: Projektre elszámolt bruttó bér és juttatások összesen (Ft) | Q7: Projektre elszámolt bruttó bér járuléka (Ft) | T7: Támogatás típusa | U7: Tám. int.
A8: neve | B8: státusza (legördülő menű) | C8: kezdete (dátum) | D8: vége (dátum) | H8: Támogatás | I8: Saját forrás | J8: Egyéb forrás | K8: Támogatás | L8: Saját forrás | M8: Egyéb forrás | N8: Támogatás | O8: Saját forrás | P8: Egyéb forrás | Q8: Támogatás | R8: Saját forrás | S8: Egyéb forrás
A9: Panni | B9: K+F munkatárs | C9: 2016-01-01 | D9: 2016-01-31 | E9: 168 | F9: 2016-02-05 | G9: M | H9: 5000 | K9: 1000 | N9: =H9+K9 -> 6000 | O9: =I9+L9 -> 0 | P9: =J9+M9 -> 0 | Q9: 2000 | T9: K+F/Alap. | U9: 1
A10: Panni | B10: Techn., segédszem. | C10: 2016-01-01 | D10: 2016-01-25 | E10: 26 | F10: 2016-02-05 | G10: Á | H10: 1000 | K10: 100 | N10: =H10+K10 -> 1100 | O10: =I10+L10 -> 0 | P10: =J10+M10 -> 0 | Q10: 200 | U10: 1
B11: Pr.menedzser | N11: 0 | O11: 0 | P11: 0
B12: Egyéb | N12: 0 | O12: 0 | P12: 0
N13: 0 | O13: 0 | P13: 0
N14: 0 | O14: 0 | P14: 0
N15: 0 | O15: 0 | P15: 0
N16: 0 | O16: 0 | P16: 0
N17: 0 | O17: 0 | P17: 0
N18: 0 | O18: 0 | P18: 0
N19: 0 | O19: 0 | P19: 0
N20: 0 | O20: 0 | P20: 0
N21: 0 | O21: 0 | P21: 0
N22: 0 | O22: 0 | P22: 0
N23: 0 | O23: 0 | P23: 0
N24: 0 | O24: 0 | P24: 0
A26: Összesen: | H26: =SUM(H9:H24) -> 6000 | I26: =SUM(I9:I24) -> 0 | J26: 0 | K26: 1100 | L26: 0 | M26: 0 | N26: 7100 | O26: 0 | P26: 0 | Q26: 2200 | R26: 0 | S26: 0
A28: * Amennyiben a pályázati felhívás/útmutató megengedi a szabadság, betegszabadság, ünnepnap elszámolását a projekt terhére, úgy szíveskedjenek a feltüntetett munkaórákba beleszámítani ezek idejét is!

Sheet (51) anyagköltség
A1: Kedvezményezett neve: | E1: =+'(KNY)könyvvizsgálói nyilatkozat'!$B4 -> XY Kft.
A2: Szerződésszám: | E2: =+'(KNY)könyvvizsgálói nyilatkozat'!$B5 -> 2018-1.1.1-VKE-2018-00001
A3: Az elszámolással érintett időszak kezdete és vége: | E3: =+'(KNY)könyvvizsgálói nyilatkozat'!$B6 -> 2018-12-31
A5: 51 Anyagköltség
A7: Sor-szám | B7: Számviteli bizonylat kiállítójának neve | C7: Adószáma | D7: Számviteli bizonylat sorszáma | E7: Kiállítás kelte | F7: Teljesítés dátuma | G7: Pénzügyi teljesítés időpontja | H7: Gazdasági esemény rövid leírása | I7: Összege (Ft) | L7: Projekt terhére elszámolt költségek (Ft) | P7: Támogatás típusa | Q7: Tám. int.
A8: szám | I8: Bruttó | J8: Nettó | K8: ÁFA | L8: Támogatás | M8: Saját forrás | N8: Egyéb f. | O8: Összesen
A9: 1. | I9: 1270 | J9: 1000 | K9: =+I9-J9 -> 270 | L9: 500 | M9: 500 | O9: =SUM(L9:N9) -> 1000 | P9: D.M./Eszköz | Q9: 0.5
A10: 2. | O10: =SUM(L10:N10) -> 0
O11: 0
O12: 0
O13: 0
O14: 0
O15: 0
O16: 0
O17: 0
O18: 0
O19: 0
O20: 0
O21: 0
O22: 0
O23: 0
O24: 0
O25: 0
O26: 0
A28: Összesen | I28: =SUM(I9:I26) -> 1270 | J28: 1000 | K28: 270 | L28: 500 | M28: 500 | N28: 0 | O28: 1000

Sheet (52) igénybe vett szolg
A1: Kedvezményezett neve: | E1: =+'(KNY)könyvvizsgálói nyilatkozat'!$B4 -> XY Kft.
A2: Szerződésszám: | E2: =+'(KNY)könyvvizsgálói nyilatkozat'!$B5 -> 2018-1.1.1-VKE-2018-00001
A3: Az elszámolással érintett időszak kezdete és vége: | E3: =+'(KNY)könyvvizsgálói nyilatkozat'!$B6 -> 2018-12-31
A5: 52 Igénybe vett szolgáltatások
A7: Sor-szám | B7: Számviteli bizonylat kiállítójának neve | C7: Adószáma | D7: Számviteli bizonylat sorszáma | E7: Kiállítás kelte | F7: Teljesítés dátuma | G7: Pénzügyi teljesítés időpontja | H7: Gazdasági esemény rövid leírása | I7: Összege (Ft) | L7: Projekt terhére elszámolt költségek (Ft) | P7: Támogatás típusa | Q7: Tám. int.
A8: szám | I8: Bruttó | J8: Nettó | K8: ÁFA | L8: Támogatás | M8: Saját forrás | N8: Egyéb f. | O8: Összesen
A9: 1. | I9: 1270 | J9: 1000 | K9: =+I9-J9 -> 270 | L9: 500 | M9: 500 | O9: =SUM(L9:N9) -> 1000 | P9: K+F/Alap. | Q9: 0.5
A10: 2. | O10: =SUM(L10:N10) -> 0
O11: 0
O12: 0
O13: 0
O14: 0
O15: 0
O16: 0
O17: 0
O18: 0
O19: 0
O20: 0
O21: 0
O22: 0
O23: 0
O24: 0
O25: 0
O26: 0
A28: Összesen | I28: =SUM(I9:I26) -> 1270 | J28: 1000 | K28: 270 | L28: 500 | M28: 500 | N28: 0 | O28: 1000

Sheet (53) egyéb szolgáltatások
A1: Kedvezményezett neve: | D1: =+'(KNY)könyvvizsgálói nyilatkozat'!$B4 -> XY Kft.
A2: Szerződésszám: | D2: =+'(KNY)könyvvizsgálói nyilatkozat'!$B5 -> 2018-1.1.1-VKE-2018-00001
A3: Az elszámolással érintett időszak kezdete és vége: | D3: =+'(KNY)könyvvizsgálói nyilatkozat'!$B6 -> 2018-12-31
A5: 53 EGYÉB SZOLGÁLTATÁSOK
A7: Sor-szám | B7: Számviteli bizonylat kiállítójának neve | C7: Adószáma | D7: Számviteli bizonylat sorszáma | E7: Kiállítás kelte | F7: Teljesítés dátuma | G7: Pénzügyi teljesítés időpontja | H7: Gazdasági esemény rövid leírása | I7: Összege (Ft) | L7: Projekt terhére elszámolt költségek (Ft) | P7: Támogatás típusa | Q7: Tám. int.
A8: szám | I8: Bruttó | J8: Nettó | K8: ÁFA | L8: Támogatás | M8: Saját forrás | N8: Egyéb f. | O8: Összesen
A9: 1. | I9: 1270 | J9: 1000 | K9: =+I9-J9 -> 270 | L9: 500 | M9: 500 | N9: 0 | O9: =SUM(L9:N9) -> 1000 | P9: K+F/Alap. | Q9: 0.5
A10: 2. | O10: =SUM(L10:N10) -> 0
O11: 0
O12: 0
O13: 0
O14: 0
O15: 0
O16: 0
O17: 0
O18: 0
O19: 0
O20: 0
O21: 0
O22: 0
O23: 0
A25: Összesen | H25: =SUM(H9:H23) -> 0 | I25: 1270 | J25: 1000 | K25: 270 | L25: 500 | M25: 500 | N25: 0 | O25: 1000

Sheet (11) immat jav beszerz
A1: Kedvezményezett neve: | D1: =+'(KNY)könyvvizsgálói nyilatkozat'!$B4 -> XY Kft.
A2: Szerződésszám: | D2: =+'(KNY)könyvvizsgálói nyilatkozat'!$B5 -> 2018-1.1.1-VKE-2018-00001
A3: Az elszámolással érintett időszak kezdete és vége: | D3: =+'(KNY)könyvvizsgálói nyilatkozat'!$B6 -> 2018-12-31
A6: 11 IMMATERIÁLIS JAVAK BESZERZÉSE
A8: Sor-szám | B8: Számviteli bizonylat kiállítójának neve | C8: Adószáma | D8: Számviteli bizonylat sorszáma | E8: Kiállítás kelte | F8: Teljesítés dátuma | G8: Pénzügyi teljesítés időpontja | H8: Amortizációnál az elszámolt időszak | J8: amortizá-ciós kulcs % | K8: Gazdasági esemény rövid leírása | L8: Összege (Ft) | O8: Projekt terhére elszámolt költségek (Ft) | S8: Támogatás típusa | T8: Tám. int.
A9: szám | H9: kezdete (dátum) | I9: vége (dátum) | L9: Bruttó | M9: Nettó | N9: ÁFA | O9: Támogatás | P9: Saját forrás | Q9: Egyéb f. | R9: Összesen
A10: 1. | L10: 1270 | M10: 1000 | N10: =+L10-M10 -> 270 | O10: 500 | P10: 500 | R10: =SUM(O10:Q10) -> 1000 | S10: D.M./Immat. | T10: 0.5
A11: 2. | R11: =SUM(O11:Q11) -> 0
R12: 0
R13: 0
R14: 0
R15: 0
R16: 0
R17: 0
R18: 0
R19: 0
R20: 0
R21: 0
R22: 0
R23: 0
R24: 0
R25: 0
A27: Összesen | L27: =SUM(L10:L26) -> 1270 | M27: =SUM(M10:M26) -> 1000 | N27: 270 | O27: =SUM(O10:O26) -> 500 | P27: =SUM(P10:P26) -> 500 | Q27: 0 | R27: 1000
A32: * Az aláírók nevét nyomtatott betűkkel is kérjük kitölteni.

Sheet (13) műszaki berendezések
A1: Kedvezményezett neve: | D1: =+'(KNY)könyvvizsgálói nyilatkozat'!$B4 -> XY Kft.
A2: Szerződésszám: | D2: =+'(KNY)könyvvizsgálói nyilatkozat'!$B5 -> 2018-1.1.1-VKE-2018-00001
A3: Az elszámolással érintett időszak kezdete és vége: | D3: =+'(KNY)könyvvizsgálói nyilatkozat'!$B6 -> 2018-12-31
A6: 13 Műszaki berendezések, gépek, járművek
A8: Sor-szám | B8: Számviteli bizonylat kiállítójának neve | C8: Adószáma | D8: Számviteli bizonylat sorszáma | E8: Kiállítás kelte | F8: Teljesítés dátuma | G8: Pénzügyi teljesítés időpontja | H8: Amortizációnál az elszámolt időszak | J8: amortizá-ciós kulcs % | K8: Gazdasági esemény rövid leírása | L8: Összege (Ft) | O8: Projekt terhére elszámolt költségek (Ft) | S8: Támogatás típusa | T8: Tám. int.
A9: szám | H9: kezdete (dátum) | I9: vége (dátum) | L9: Bruttó | M9: Nettó | N9: ÁFA | O9: Támogatás | P9: Saját forrás | Q9: Egyéb f. | R9: Összesen
A10: 1. | L10: 1270 | M10: 1000 | N10: =+L10-M10 -> 270 | O10: 500 | P10: 500 | Q10: 0 | R10: =SUM(O10:Q10) -> 1000 | S10: K+F/Alap. | T10: 0.5
A11: 2. | R11: =SUM(O11:Q11) -> 0
R12: 0
R13: 0
R14: 0
R15: 0
R16: 0
R17: 0
R18: 0
R19: 0
R20: 0
R21: 0
R22: 0
R23: 0
R24: 0
R25: 0
A27: Összesen | L27: =SUM(L10:L26) -> 1270 | M27: =SUM(M10:M26) -> 1000 | N27: 270 | O27: =SUM(O10:O26) -> 500 | P27: =SUM(P10:P26) -> 500 | Q27: 0 | R27: 1000

Sheet (14) egyéb berendezések
A1: Kedvezményezett neve: | D1: =+'(KNY)könyvvizsgálói nyilatkozat'!$B4 -> XY Kft.
A2: Szerződésszám: | D2: =+'(KNY)könyvvizsgálói nyilatkozat'!$B5 -> 2018-1.1.1-VKE-2018-00001
A3: Az elszámolással érintett időszak kezdete és vége: | D3: =+'(KNY)könyvvizsgálói nyilatkozat'!$B6 -> 2018-12-31
A6: 14 Egyéb berendezések, felszerelések, járművek
A8: Sor-szám | B8: Számviteli bizonylat kiállítójának neve | C8: Adószáma | D8: Számviteli bizonylat sorszáma | E8: Kiállítás kelte | F8: Teljesítés dátuma | G8: Pénzügyi teljesítés időpontja | H8: Amortizációnál az elszámolt időszak | J8: amortizá-ciós kulcs % | K8: Gazdasági esemény rövid leírása | L8: Összege (Ft) | O8: Projekt terhére elszámolt költségek (Ft) | S8: Támogatás típusa | T8: Tám. int.
A9: szám | H9: kezdete (dátum) | I9: vége (dátum) | L9: Bruttó | M9: Nettó | N9: ÁFA | O9: Támogatás | P9: Saját forrás | Q9: Egyéb f. | R9: Összesen
A10: 1. | L10: 1270 | M10: 1000 | N10: =+L10-M10 -> 270 | O10: 500 | P10: 500 | Q10: 0 | R10: =SUM(O10:Q10) -> 1000 | S10: K+F/Alap. | T10: 0.5
A11: 2. | R11: =SUM(O11:Q11) -> 0
R12: 0
R13: 0
R14: 0
R15: 0
R16: 0
R17: 0
R18: 0
R19: 0
R20: 0
R21: 0
R22: 0
R23: 0
R24: 0
R25: 0
A27: Összesen | L27: =SUM(L10:L26) -> 1270 | M27: =SUM(M10:M26) -> 1000 | N27: 270 | O27: =SUM(O10:O26) -> 500 | P27: =SUM(P10:P26) -> 500 | Q27: 0 | R27: 1000

Sheet (16) beruházás,felújítás
A1: Kedvezményezett neve: | D1: =+'(KNY)könyvvizsgálói nyilatkozat'!$B4 -> XY Kft.
A2: Szerződésszám: | D2: =+'(KNY)könyvvizsgálói nyilatkozat'!$B5 -> 2018-1.1.1-VKE-2018-00001
A3: Az elszámolással érintett időszak kezdete és vége: | D3: =+'(KNY)könyvvizsgálói nyilatkozat'!$B6 -> 2018-12-31
A6: 16 BERUZÁZÁSOK, FELÚJÍTÁSOK
A8: Sor-szám | B8: Számviteli bizonylat kiállítójának neve | C8: Adószáma | D8: Számviteli bizonylat sorszáma | E8: Kiállítás kelte | F8: Teljesítés dátuma | G8: Pénzügyi teljesítés időpontja | H8: Amortizációnál az elszámolt időszak | J8: amortizá-ciós kulcs % | K8: Gazdasági esemény rövid leírása | L8: Összege (Ft) | O8: Projekt terhére elszámolt költségek (Ft) | S8: Támogatás típusa | T8: Tám. int.
A9: szám | H9: kezdete (dátum) | I9: vége (dátum) | L9: Bruttó | M9: Nettó | N9: ÁFA | O9: Támogatás | P9: Saját forrás | Q9: Egyéb f. | R9: Összesen
A10: 1. | L10: 1270 | M10: 1000 | N10: =+L10-M10 -> 270 | O10: 500 | P10: 500 | R10: =SUM(O10:Q10) -> 1000 | S10: Kut.infra.- b.r. | T10: 0.25
A11: 2. | R11: =SUM(O11:Q11) -> 0
R12: 0
R13: 0
R14: 0
R15: 0
R16: 0
R17: 0
R18: 0
R19: 0
R20: 0
R21: 0
R22: 0
R23: 0
R24: 0
R25: 0
A27: Összesen | L27: =SUM(L10:L26) -> 1270 | M27: =SUM(M10:M26) -> 1000 | N27: 270 | O27: =SUM(O10:O26) -> 500 | P27: =SUM(P10:P26) -> 500 | Q27: 0 | R27: 1000

Sheet tám. típus összesítő
A1: Kedvezményezett neve: | F1: =+'(KNY)könyvvizsgálói nyilatkozat'!B4 -> XY Kft. | P1: Kedvezményezett neve: | U1: =F1 -> XY Kft. | AE1: Kedvezményezett neve: | AJ1: =+F1 -> XY Kft. | AS1: Kedvezményezett neve: | AX1: =F1 -> XY Kft.
A2: Szerződésszám: | F2: =+'(KNY)könyvvizsgálói nyilatkozat'!B5 -> 2018-1.1.1-VKE-2018-00001 | P2: Szerződésszám: | U2: =F2 -> 2018-1.1.1-VKE-2018-00001 | AE2: Szerződésszám: | AJ2: =+F2 -> 2018-1.1.1-VKE-2018-00001 | AS2: Szerződésszám: | AX2: =F2 -> 2018-1.1.1-VKE-2018-00001
A3: Mérföldkő dátuma: | F3: =+'(KNY)könyvvizsgálói nyilatkozat'!B6 -> 2018-12-31 | P3: Mérföldkő dátuma: | U3: =F3 -> 2018-12-31 | AE3: Mérföldkő dátuma: | AJ3: 2018-12-31 | AS3: Mérföldkő dátuma: | AX3: =F3 -> 2018-12-31
A5: TÁMOGATÁS | P5: SAJÁT FORRÁS | AE5: EGYÉB FORRÁS | AS5: ÖSSZESÍTÉS
A7: sor-szám | B7: támogatás típusa | C7: támog. int. | D7: (54) személyi juttatások | E7: (56) járulék | F7: (51) anyagköltség | G7: (52) igénybe vett szolgáltatások | H7: (53) egyéb szolgáltatások | I7: (11) immateriális javak beszerzése | J7: (13) műszaki berendezések | K7: (14) egyéb berendezések | L7: (16) beruházás,felújítás | M7: összesen | P7: sor-szám | Q7: támogatás típusa | R7: támog. int. | S7: (54) személyi juttatások | T7: (56) járulék | U7: (51) anyagköltség | V7: (52) igénybe vett szolgáltatások | W7: (53) egyéb szolgáltatások | X7: (11) immateriális javak beszerzése | Y7: (13) műszaki berendezések | Z7: (14) egyéb berendezések | AA7: (16) beruházás,felújítás | AB7: összesen | AE7: sor-szám | AF7: támogatás típusa | AG7: támog. int. | AH7: (54) személyi juttatások | AI7: (56) járulék | AJ7: (51) anyagköltség | AK7: (52) igénybe vett szolgáltatások | AL7: (53) egyéb szolgáltatások | AM7: (11) immateriális javak beszerzése | AN7: (13) műszaki berendezések | AO7: (14) egyéb berendezések | AP7: (16) beruházás,felújítás | AQ7: összesen | AS7: sor-szám | AT7: támogatás típusa | AU7: támog. int. | AV7: (54) személyi juttatások | AW7: (56) járulék | AX7: (51) anyagköltség | AY7: (52) igénybe vett szolgáltatások | AZ7: (53) egyéb szolgáltatások | BA7: (11) immateriális javak beszerzése | BB7: (13) műszaki berendezések | BC7: (14) egyéb berendezések | BD7: (16) beruházás,felújítás | BE7: összesen
A8: 1 | B8: K+F/Alap. | C8: 0 | D8: =SUMIF('(54-56) személyi+járulék'!$T:$T,B8,'(54-56) személyi+járulék'!$N:$N) -> 6000 | E8: =SUMIF('(54-56) személyi+járulék'!$T:$T,B8,'(54-56) személyi+járulék'!$Q:$Q) -> 2000 | F8: =SUMIF('(51) anyagköltség '!$P:$P,B8,'(51) anyagköltség '!$L:$L) -> 0 | G8: =SUMIF('(52) igénybe vett szolg'!$P:$P,B8,'(52) igénybe vett szolg'!$L:$L) -> 500 | H8: =SUMIF('(53) egyéb szolgáltatások'!$P:$P,$B8,'(52) igénybe vett szolg'!$L:$L) -> 500 | I8: =SUMIF('(11) immat jav beszerz'!$S:$S,$B8,'(11) immat jav beszerz'!$O:$O) -> 0 | J8: =SUMIF('(13) műszaki berendezések'!$S:$S,$B8,'(13) műszaki berendezések'!$O:$O) -> 500 | K8: =SUMIF('(14) egyéb berendezések'!$S:$S,$B8,'(14) egyéb berendezések'!$O:$O) -> 500 | L8: =SUMIF('(16) beruházás,felújítás'!$S:$S,$B8,'(16) beruházás,felújítás'!$O:$O) -> 0 | M8: =SUM(C8:L8) -> 10000 | P8: 1 | Q8: K+F/Alap. | R8: 0 | S8: =SUMIF('(54-56) személyi+járulék'!$T:$T,Q8,'(54-56) személyi+járulék'!$O:$O) -> 0 | T8: =SUMIF('(54-56) személyi+járulék'!$T:$T,Q8,'(54-56) személyi+járulék'!$R:$R) -> 0 | U8: =SUMIF('(51) anyagköltség '!$P:$P,Q8,'(51) anyagköltség '!$M:$M) -> 0 | V8: =SUMIF('(52) igénybe vett szolg'!$P:$P,Q8,'(52) igénybe vett szolg'!$M:$M) -> 500 | W8: =SUMIF('(53) egyéb szolgáltatások'!$P:$P,$B8,'(52) igénybe vett szolg'!$M:$M) -> 500 | X8: =SUMIF('(11) immat jav beszerz'!$S:$S,$B8,'(11) immat jav beszerz'!$P:$P) -> 0 | Y8: =SUMIF('(13) műszaki berendezések'!$S:$S,$B8,'(13) műszaki berendezések'!$P:$P) -> 500 | Z8: =SUMIF('(14) egyéb berendezések'!$S:$S,$B8,'(14) egyéb berendezések'!$P:$P) -> 500 | AA8: =SUMIF('(16) beruházás,felújítás'!$S:$S,$B8,'(16) beruházás,felújítás'!$P:$P) -> 0 | AB8: =SUM(R8:AA8) -> 2000 | AE8: 1 | AF8: K+F/Alap. | AG8: 0 | AH8: =SUMIF('(54-56) személyi+járulék'!$T:$T,AF8,'(54-56) személyi+járulék'!$P:$P) -> 0 | AI8: =SUMIF('(54-56) személyi+járulék'!$T:$T,AF8,'(54-56) személyi+járulék'!$S:$S) -> 0 | AJ8: =SUMIF('(51) anyagköltség '!$P:$P,AF8,'(51) anyagköltség '!$N:$N) -> 0 | AK8: =SUMIF('(52) igénybe vett szolg'!$P:$P,AF8,'(52) igénybe vett szolg'!$N:$N) -> 0 | AL8: =SUMIF('(53) egyéb szolgáltatások'!$P:$P,$B8,'(52) igénybe vett szolg'!$N:$N) -> 0 | AM8: =SUMIF('(11) immat jav beszerz'!$S:$S,$B8,'(11) immat jav beszerz'!$Q:$Q) -> 0 | AN8: =SUMIF('(13) műszaki berendezések'!$S:$S,$B8,'(13) műszaki berendezések'!$Q:$Q) -> 0 | AO8: =SUMIF('(14) egyéb berendezések'!$S:$S,$B8,'(14) egyéb berendezések'!$Q:$Q) -> 0 | AP8: =SUMIF('(16) beruházás,felújítás'!$S:$S,$B8,'(16) beruházás,felújítás'!$Q:$Q) -> 0 | AQ8: =SUM(AG8:AP8) -> 0 | AS8: 1 | AT8: K+F/Alap. | AU8: 0 | AV8: =+D8+S8+AH8 -> 6000 | AW8: =+E8+T8+AI8 -> 2000 | AX8: 0 | AY8: 1000 | AZ8: 1000 | BA8: 0 | BB8: 1000 | BC8: 1000 | BD8: 0 | BE8: =SUM(AU8:BD8) -> 12000
A9: 2 | B9: K+F/Alkalm. | C9: 0 | D9: =SUMIF('(54-56) személyi+járulék'!$T:$T,B9,'(54-56) személyi+járulék'!$N:$N) -> 0 | E9: =SUMIF('(54-56) személyi+járulék'!$T:$T,B9,'(54-56) személyi+járulék'!$Q:$Q) -> 0 | F9: =SUMIF('(51) anyagköltség '!$P:$P,B9,'(51) anyagköltség '!$L:$L) -> 0 | G9: =SUMIF('(52) igénybe vett szolg'!$P:$P,B9,'(52) igénybe vett szolg'!$L:$L) -> 0 | H9: =SUMIF('(53) egyéb szolgáltatások'!$P:$P,$B9,'(52) igénybe vett szolg'!$L:$L) -> 0 | I9: =SUMIF('(11) immat jav beszerz'!$S:$S,$B9,'(11) immat jav beszerz'!$O:$O) -> 0 | J9: =SUMIF('(13) műszaki berendezések'!$S:$S,$B9,'(13) műszaki berendezések'!$O:$O) -> 0 | K9: =SUMIF('(14) egyéb berendezések'!$S:$S,$B9,'(14) egyéb berendezések'!$O:$O) -> 0 | L9: =SUMIF('(16) beruházás,felújítás'!$S:$S,$B9,'(16) beruházás,felújítás'!$O:$O) -> 0 | M9: =SUM(C9:L9) -> 0 | P9: 2 | Q9: K+F/Alkalm. | R9: 0 | S9: =SUMIF('(54-56) személyi+járulék'!$T:$T,Q9,'(54-56) személyi+járulék'!$O:$O) -> 0 | T9: =SUMIF('(54-56) személyi+járulék'!$T:$T,Q9,'(54-56) személyi+járulék'!$R:$R) -> 0 | U9: =SUMIF('(51) anyagköltség '!$P:$P,Q9,'(51) anyagköltség '!$M:$M) -> 0 | V9: =SUMIF('(52) igénybe vett szolg'!$P:$P,Q9,'(52) igénybe vett szolg'!$M:$M) -> 0 | W9: =SUMIF('(53) egyéb szolgáltatások'!$P:$P,$B9,'(52) igénybe vett szolg'!$M:$M) -> 0 | X9: =SUMIF('(11) immat jav beszerz'!$S:$S,$B9,'(11) immat jav beszerz'!$P:$P) -> 0 | Y9: =SUMIF('(13) műszaki berendezések'!$S:$S,$B9,'(13) műszaki berendezések'!$P:$P) -> 0 | Z9: =SUMIF('(14) egyéb berendezések'!$S:$S,$B9,'(14) egyéb berendezések'!$P:$P) -> 0 | AA9: =SUMIF('(16) beruházás,felújítás'!$S:$S,$B9,'(16) beruházás,felújítás'!$P:$P) -> 0 | AB9: =SUM(R9:AA9) -> 0 | AE9: 2 | AF9: K+F/Alkalm. | AG9: 0 | AH9: =SUMIF('(54-56) személyi+járulék'!$T:$T,AF9,'(54-56) személyi+járulék'!$P:$P) -> 0 | AI9: =SUMIF('(54-56) személyi+járulék'!$T:$T,AF9,'(54-56) személyi+járulék'!$S:$S) -> 0 | AJ9: =SUMIF('(51) anyagköltség '!$P:$P,AF9,'(51) anyagköltség '!$N:$N) -> 0 | AK9: =SUMIF('(52) igénybe vett szolg'!$P:$P,AF9,'(52) igénybe vett szolg'!$N:$N) -> 0 | AL9: =SUMIF('(53) egyéb szolgáltatások'!$P:$P,$B9,'(52) igénybe vett szolg'!$N:$N) -> 0 | AM9: =SUMIF('(11) immat jav beszerz'!$S:$S,$B9,'(11) immat jav beszerz'!$Q:$Q) -> 0 | AN9: =SUMIF('(13) műszaki berendezések'!$S:$S,$B9,'(13) műszaki berendezések'!$Q:$Q) -> 0 | AO9: =SUMIF('(14) egyéb berendezések'!$S:$S,$B9,'(14) egyéb berendezések'!$Q:$Q) -> 0 | AP9: =SUMIF('(16) beruházás,felújítás'!$S:$S,$B9,'(16) beruházás,felújítás'!$Q:$Q) -> 0 | AQ9: =SUM(AG9:AP9) -> 0 | AS9: 2 | AT9: K+F/Alkalm. | AU9: 0 | AV9: =+D9+S9+AH9 -> 0 | AW9: =+E9+T9+AI9 -> 0 | AX9: =+F9+U9+AJ9 -> 0 | AY9: =+G9+V9+AK9 -> 0 | AZ9: =+H9+W9+AL9 -> 0 | BA9: =+I9+X9+AM9 -> 0 | BB9: =+J9+Y9+AN9 -> 0 | BC9: =+K9+Z9+AO9 -> 0 | BD9: =+L9+AA9+AP9 -> 0 | BE9: =SUM(AU9:BD9) -> 0
A10: 3 | B10: K+F/Kis.fejl. | C10: 0 | D10: =SUMIF('(54-56) személyi+járulék'!$T:$T,B10,'(54-56) személyi+járulék'!$N:$N) -> 0 | E10: =SUMIF('(54-56) személyi+járulék'!$T:$T,B10,'(54-56) személyi+járulék'!$Q:$Q) -> 0 | F10: =SUMIF('(51) anyagköltség '!$P:$P,B10,'(51) anyagköltség '!$L:$L) -> 0 | G10: =SUMIF('(52) igénybe vett szolg'!$P:$P,B10,'(52) igénybe vett szolg'!$L:$L) -> 0 | H10: =SUMIF('(53) egyéb szolgáltatások'!$P:$P,$B10,'(52) igénybe vett szolg'!$L:$L) -> 0 | I10: =SUMIF('(11) immat jav beszerz'!$S:$S,$B10,'(11) immat jav beszerz'!$O:$O) -> 0 | J10: =SUMIF('(13) műszaki berendezések'!$S:$S,$B10,'(13) műszaki berendezések'!$O:$O) -> 0 | K10: =SUMIF('(14) egyéb berendezések'!$S:$S,$B10,'(14) egyéb berendezések'!$O:$O) -> 0 | L10: =SUMIF('(16) beruházás,felújítás'!$S:$S,$B10,'(16) beruházás,felújítás'!$O:$O) -> 0 | M10: 0 | P10: 3 | Q10: K+F/Kis.fejl. | R10: 0 | S10: =SUMIF('(54-56) személyi+járulék'!$T:$T,Q10,'(54-56) személyi+járulék'!$O:$O) -> 0 | T10: =SUMIF('(54-56) személyi+járulék'!$T:$T,Q10,'(54-56) személyi+járulék'!$R:$R) -> 0 | U10: =SUMIF('(51) anyagköltség '!$P:$P,Q10,'(51) anyagköltség '!$M:$M) -> 0 | V10: =SUMIF('(52) igénybe vett szolg'!$P:$P,Q10,'(52) igénybe vett szolg'!$M:$M) -> 0 | W10: =SUMIF('(53) egyéb szolgáltatások'!$P:$P,$B10,'(52) igénybe vett szolg'!$M:$M) -> 0 | X10: =SUMIF('(11) immat jav beszerz'!$S:$S,$B10,'(11) immat jav beszerz'!$P:$P) -> 0 | Y10: =SUMIF('(13) műszaki berendezések'!$S:$S,$B10,'(13) műszaki berendezések'!$P:$P) -> 0 | Z10: =SUMIF('(14) egyéb berendezések'!$S:$S,$B10,'(14) egyéb berendezések'!$P:$P) -> 0 | AA10: =SUMIF('(16) beruházás,felújítás'!$S:$S,$B10,'(16) beruházás,felújítás'!$P:$P) -> 0 | AB10: 0 | AE10: 3 | AF10: K+F/Kis.fejl. | AG10: 0 | AH10: =SUMIF('(54-56) személyi+járulék'!AX:AX,AF10,'(54-56) személyi+járulék'!$P:$P) -> 0 | AI10: =SUMIF('(54-56) személyi+járulék'!$T:$T,AF10,'(54-56) személyi+járulék'!$S:$S) -> 0 | AJ10: =SUMIF('(51) anyagköltség '!$P:$P,AF10,'(51) anyagköltség '!$N:$N) -> 0 | AK10: =SUMIF('(52) igénybe vett szolg'!$P:$P,AF10,'(52) igénybe vett szolg'!$N:$N) -> 0 | AL10: =SUMIF('(53) egyéb szolgáltatások'!$P:$P,$B10,'(52) igénybe vett szolg'!$N:$N) -> 0 | AM10: =SUMIF('(11) immat jav beszerz'!$S:$S,$B10,'(11) immat jav beszerz'!$Q:$Q) -> 0 | AN10: =SUMIF('(13) műszaki berendezések'!$S:$S,$B10,'(13) műszaki berendezések'!$Q:$Q) -> 0 | AO10: =SUMIF('(14) egyéb berendezések'!$S:$S,$B10,'(14) egyéb berendezések'!$Q:$Q) -> 0 | AP10: =SUMIF('(16) beruházás,felújítás'!$S:$S,$B10,'(16) beruházás,felújítás'!$Q:$Q) -> 0 | AQ10: 0 | AS10: 3 | AT10: K+F/Kis.fejl. | AU10: 0 | AV10: 0 | AW10: 0 | AX10: 0 | AY10: 0 | AZ10: 0 | BA10: 0 | BB10: 0 | BC10: 0 | BD10: 0 | BE10: 0
A11: 4 | B11: D.M./Közbesz. | C11: 0 | D11: =SUMIF('(54-56) személyi+járulék'!$T:$T,B11,'(54-56) személyi+járulék'!$N:$N) -> 0 | E11: =SUMIF('(54-56) személyi+járulék'!$T:$T,B11,'(54-56) személyi+járulék'!$Q:$Q) -> 0 | F11: =SUMIF('(51) anyagköltség '!$P:$P,B11,'(51) anyagköltség '!$L:$L) -> 0 | G11: =SUMIF('(52) igénybe vett szolg'!$P:$P,B11,'(52) igénybe vett szolg'!$L:$L) -> 0 | H11: =SUMIF('(53) egyéb szolgáltatások'!$P:$P,$B11,'(52) igénybe vett szolg'!$L:$L) -> 0 | I11: =SUMIF('(11) immat jav beszerz'!$S:$S,$B11,'(11) immat jav beszerz'!$O:$O) -> 0 | J11: =SUMIF('(13) műszaki berendezések'!$S:$S,$B11,'(13) műszaki berendezések'!$O:$O) -> 0 | K11: =SUMIF('(14) egyéb berendezések'!$S:$S,$B11,'(14) egyéb berendezések'!$O:$O) -> 0 | L11: =SUMIF('(16) beruházás,felújítás'!$S:$S,$B11,'(16) beruházás,felújítás'!$O:$O) -> 0 | M11: 0 | P11: 4 | Q11: D.M./Közbesz. | R11: 0 | S11: =SUMIF('(54-56) személyi+járulék'!$T:$T,Q11,'(54-56) személyi+járulék'!$O:$O) -> 0 | T11: =SUMIF('(54-56) személyi+járulék'!$T:$T,Q11,'(54-56) személyi+járulék'!$R:$R) -> 0 | U11: =SUMIF('(51) anyagköltség '!$P:$P,Q11,'(51) anyagköltség '!$M:$M) -> 0 | V11: =SUMIF('(52) igénybe vett szolg'!$P:$P,Q11,'(52) igénybe vett szolg'!$M:$M) -> 0 | W11: =SUMIF('(53) egyéb szolgáltatások'!$P:$P,$B11,'(52) igénybe vett szolg'!$M:$M) -> 0 | X11: =SUMIF('(11) immat jav beszerz'!$S:$S,$B11,'(11) immat jav beszerz'!$P:$P) -> 0 | Y11: =SUMIF('(13) műszaki berendezések'!$S:$S,$B11,'(13) műszaki berendezések'!$P:$P) -> 0 | Z11: =SUMIF('(14) egyéb berendezések'!$S:$S,$B11,'(14) egyéb berendezések'!$P:$P) -> 0 | AA11: =SUMIF('(16) beruházás,felújítás'!$S:$S,$B11,'(16) beruházás,felújítás'!$P:$P) -> 0 | AB11: 0 | AE11: 4 | AF11: D.M./Közbesz. | AG11: 0 | AH11: =SUMIF('(54-56) személyi+járulék'!AX:AX,AF11,'(54-56) személyi+járulék'!$P:$P) -> 0 | AI11: =SUMIF('(54-56) személyi+járulék'!$T:$T,AF11,'(54-56) személyi+járulék'!$S:$S) -> 0 | AJ11: =SUMIF('(51) anyagköltség '!$P:$P,AF11,'(51) anyagköltség '!$N:$N) -> 0 | AK11: =SUMIF('(52) igénybe vett szolg'!$P:$P,AF11,'(52) igénybe vett szolg'!$N:$N) -> 0 | AL11: =SUMIF('(53) egyéb szolgáltatások'!$P:$P,$B11,'(52) igénybe vett szolg'!$N:$N) -> 0 | AM11: =SUMIF('(11) immat jav beszerz'!$S:$S,$B11,'(11) immat jav beszerz'!$Q:$Q) -> 0 | AN11: =SUMIF('(13) műszaki berendezések'!$S:$S,$B11,'(13) műszaki berendezések'!$Q:$Q) -> 0 | AO11: =SUMIF('(14) egyéb berendezések'!$S:$S,$B11,'(14) egyéb berendezések'!$Q:$Q) -> 0 | AP11: =SUMIF('(16) beruházás,felújítás'!$S:$S,$B11,'(16) beruházás,felújítás'!$Q:$Q) -> 0 | AQ11: 0 | AS11: 4 | AT11: D.M./Közbesz. | AU11: 0 | AV11: 0 | AW11: 0 | AX11: 0 | AY11: 0 | AZ11: 0 | BA11: 0 | BB11: 0 | BC11: 0 | BD11: 0 | BE11: 0
A12: 5 | B12: D.M./Koord. | C12: 0 | D12: =SUMIF('(54-56) személyi+járulék'!$T:$T,B12,'(54-56) személyi+járulék'!$N:$N) -> 0 | E12: =SUMIF('(54-56) személyi+járulék'!$T:$T,B12,'(54-56) személyi+járulék'!$Q:$Q) -> 0 | F12: =SUMIF('(51) anyagköltség '!$P:$P,B12,'(51) anyagköltség '!$L:$L) -> 0 | G12: =SUMIF('(52) igénybe vett szolg'!$P:$P,B12,'(52) igénybe vett szolg'!$L:$L) -> 0 | H12: =SUMIF('(53) egyéb szolgáltatások'!$P:$P,$B12,'(52) igénybe vett szolg'!$L:$L) -> 0 | I12: =SUMIF('(11) immat jav beszerz'!$S:$S,$B12,'(11) immat jav beszerz'!$O:$O) -> 0 | J12: =SUMIF('(13) műszaki berendezések'!$S:$S,$B12,'(13) műszaki berendezések'!$O:$O) -> 0 | K12: =SUMIF('(14) egyéb berendezések'!$S:$S,$B12,'(14) egyéb berendezések'!$O:$O) -> 0 | L12: =SUMIF('(16) beruházás,felújítás'!$S:$S,$B12,'(16) beruházás,felújítás'!$O:$O) -> 0 | M12: 0 | P12: 5 | Q12: D.M./Koord. | R12: 0 | S12: =SUMIF('(54-56) személyi+járulék'!$T:$T,Q12,'(54-56) személyi+járulék'!$O:$O) -> 0 | T12: =SUMIF('(54-56) személyi+járulék'!$T:$T,Q12,'(54-56) személyi+járulék'!$R:$R) -> 0 | U12: =SUMIF('(51) anyagköltség '!$P:$P,Q12,'(51) anyagköltség '!$M:$M) -> 0 | V12: =SUMIF('(52) igénybe vett szolg'!$P:$P,Q12,'(52) igénybe vett szolg'!$M:$M) -> 0 | W12: =SUMIF('(53) egyéb szolgáltatások'!$P:$P,$B12,'(52) igénybe vett szolg'!$M:$M) -> 0 | X12: =SUMIF('(11) immat jav beszerz'!$S:$S,$B12,'(11) immat jav beszerz'!$P:$P) -> 0 | Y12: =SUMIF('(13) műszaki berendezések'!$S:$S,$B12,'(13) műszaki berendezések'!$P:$P) -> 0 | Z12: =SUMIF('(14) egyéb berendezések'!$S:$S,$B12,'(14) egyéb berendezések'!$P:$P) -> 0 | AA12: =SUMIF('(16) beruházás,felújítás'!$S:$S,$B12,'(16) beruházás,felújítás'!$P:$P) -> 0 | AB12: 0 | AE12: 5 | AF12: D.M./Koord. | AG12: 0 | AH12: =SUMIF('(54-56) személyi+járulék'!AX:AX,AF12,'(54-56) személyi+járulék'!$P:$P) -> 0 | AI12: =SUMIF('(54-56) személyi+járulék'!$T:$T,AF12,'(54-56) személyi+járulék'!$S:$S) -> 0 | AJ12: =SUMIF('(51) anyagköltség '!$P:$P,AF12,'(51) anyagköltség '!$N:$N) -> 0 | AK12: =SUMIF('(52) igénybe vett szolg'!$P:$P,AF12,'(52) igénybe vett szolg'!$N:$N) -> 0 | AL12: =SUMIF('(53) egyéb szolgáltatások'!$P:$P,$B12,'(52) igénybe vett szolg'!$N:$N) -> 0 | AM12: =SUMIF('(11) immat jav beszerz'!$S:$S,$B12,'(11) immat jav beszerz'!$Q:$Q) -> 0 | AN12: =SUMIF('(13) műszaki berendezések'!$S:$S,$B12,'(13) műszaki berendezések'!$Q:$Q) -> 0 | AO12: =SUMIF('(14) egyéb berendezések'!$S:$S,$B12,'(14) egyéb berendezések'!$Q:$Q) -> 0 | AP12: =SUMIF('(16) beruházás,felújítás'!$S:$S,$B12,'(16) beruházás,felújítás'!$Q:$Q) -> 0 | AQ12: 0 | AS12: 5 | AT12: D.M./Koord. | AU12: 0 | AV12: 0 | AW12: 0 | AX12: 0 | AY12: 0 | AZ12: 0 | BA12: 0 | BB12: 0 | BC12: 0 | BD12: 0 | BE12: 0
A13: 6 | B13: D.M./Tájék. | C13: 0 | D13: =SUMIF('(54-56) személyi+járulék'!$T:$T,B13,'(54-56) személyi+járulék'!$N:$N) -> 0 | E13: =SUMIF('(54-56) személyi+járulék'!$T:$T,B13,'(54-56) személyi+járulék'!$Q:$Q) -> 0 | F13: =SUMIF('(51) anyagköltség '!$P:$P,B13,'(51) anyagköltség '!$L:$L) -> 0 | G13: =SUMIF('(52) igénybe vett szolg'!$P:$P,B13,'(52) igénybe vett szolg'!$L:$L) -> 0 | H13: =SUMIF('(53) egyéb szolgáltatások'!$P:$P,$B13,'(52) igénybe vett szolg'!$L:$L) -> 0 | I13: =SUMIF('(11) immat jav beszerz'!$S:$S,$B13,'(11) immat jav beszerz'!$O:$O) -> 0 | J13: =SUMIF('(13) műszaki berendezések'!$S:$S,$B13,'(13) műszaki berendezések'!$O:$O) -> 0 | K13: =SUMIF('(14) egyéb berendezések'!$S:$S,$B13,'(14) egyéb berendezések'!$O:$O) -> 0 | L13: =SUMIF('(16) beruházás,felújítás'!$S:$S,$B13,'(16) beruházás,felújítás'!$O:$O) -> 0 | M13: 0 | P13: 6 | Q13: D.M./Tájék. | R13: 0 | S13: =SUMIF('(54-56) személyi+járulék'!$T:$T,Q13,'(54-56) személyi+járulék'!$O:$O) -> 0 | T13: =SUMIF('(54-56) személyi+járulék'!$T:$T,Q13,'(54-56) személyi+járulék'!$R:$R) -> 0 | U13: =SUMIF('(51) anyagköltség '!$P:$P,Q13,'(51) anyagköltség '!$M:$M) -> 0 | V13: =SUMIF('(52) igénybe vett szolg'!$P:$P,Q13,'(52) igénybe vett szolg'!$M:$M) -> 0 | W13: =SUMIF('(53) egyéb szolgáltatások'!$P:$P,$B13,'(52) igénybe vett szolg'!$M:$M) -> 0 | X13: =SUMIF('(11) immat jav beszerz'!$S:$S,$B13,'(11) immat jav beszerz'!$P:$P) -> 0 | Y13: =SUMIF('(13) műszaki berendezések'!$S:$S,$B13,'(13) műszaki berendezések'!$P:$P) -> 0 | Z13: =SUMIF('(14) egyéb berendezések'!$S:$S,$B13,'(14) egyéb berendezések'!$P:$P) -> 0 | AA13: =SUMIF('(16) beruházás,felújítás'!$S:$S,$B13,'(16) beruházás,felújítás'!$P:$P) -> 0 | AB13: 0 | AE13: 6 | AF13: D.M./Tájék. | AG13: 0 | AH13: =SUMIF('(54-56) személyi+járulék'!AX:AX,AF13,'(54-56) személyi+járulék'!$P:$P) -> 0 | AI13: =SUMIF('(54-56) személyi+járulék'!$T:$T,AF13,'(54-56) személyi+járulék'!$S:$S) -> 0 | AJ13: =SUMIF('(51) anyagköltség '!$P:$P,AF13,'(51) anyagköltség '!$N:$N) -> 0 | AK13: =SUMIF('(52) igénybe vett szolg'!$P:$P,AF13,'(52) igénybe vett szolg'!$N:$N) -> 0 | AL13: =SUMIF('(53) egyéb szolgáltatások'!$P:$P,$B13,'(52) igénybe vett szolg'!$N:$N) -> 0 | AM13: =SUMIF('(11) immat jav beszerz'!$S:$S,$B13,'(11) immat jav beszerz'!$Q:$Q) -> 0 | AN13: =SUMIF('(13) műszaki berendezések'!$S:$S,$B13,'(13) műszaki berendezések'!$Q:$Q) -> 0 | AO13: =SUMIF('(14) egyéb berendezések'!$S:$S,$B13,'(14) egyéb berendezések'!$Q:$Q) -> 0 | AP13: =SUMIF('(16) beruházás,felújítás'!$S:$S,$B13,'(16) beruházás,felújítás'!$Q:$Q) -> 0 | AQ13: 0 | AS13: 6 | AT13: D.M./Tájék. | AU13: 0 | AV13: 0 | AW13: 0 | AX13: 0 | AY13: 0 | AZ13: 0 | BA13: 0 | BB13: 0 | BC13: 0 | BD13: 0 | BE13: 0
A14: 7 | B14: D.M./Piac | C14: 0 | D14: =SUMIF('(54-56) személyi+járulék'!$T:$T,B14,'(54-56) személyi+járulék'!$N:$N) -> 0 | E14: =SUMIF('(54-56) személyi+járulék'!$T:$T,B14,'(54-56) személyi+járulék'!$Q:$Q) -> 0 | F14: =SUMIF('(51) anyagköltség '!$P:$P,B14,'(51) anyagköltség '!$L:$L) -> 0 | G14: =SUMIF('(52) igénybe vett szolg'!$P:$P,B14,'(52) igénybe vett szolg'!$L:$L) -> 0 | H14: =SUMIF('(53) egyéb szolgáltatások'!$P:$P,$B14,'(52) igénybe vett szolg'!$L:$L) -> 0 | I14: =SUMIF('(11) immat jav beszerz'!$S:$S,$B14,'(11) immat jav beszerz'!$O:$O) -> 0 | J14: =SUMIF('(13) műszaki berendezések'!$S:$S,$B14,'(13) műszaki berendezések'!$O:$O) -> 0 | K14: =SUMIF('(14) egyéb berendezések'!$S:$S,$B14,'(14) egyéb berendezések'!$O:$O) -> 0 | L14: =SUMIF('(16) beruházás,felújítás'!$S:$S,$B14,'(16) beruházás,felújítás'!$O:$O) -> 0 | M14: 0 | P14: 7 | Q14: D.M./Piac | R14: 0 | S14: =SUMIF('(54-56) személyi+járulék'!$T:$T,Q14,'(54-56) személyi+járulék'!$O:$O) -> 0 | T14: =SUMIF('(54-56) személyi+járulék'!$T:$T,Q14,'(54-56) személyi+járulék'!$R:$R) -> 0 | U14: =SUMIF('(51) anyagköltség '!$P:$P,Q14,'(51) anyagköltség '!$M:$M) -> 0 | V14: =SUMIF('(52) igénybe vett szolg'!$P:$P,Q14,'(52) igénybe vett szolg'!$M:$M) -> 0 | W14: =SUMIF('(53) egyéb szolgáltatások'!$P:$P,$B14,'(52) igénybe vett szolg'!$M:$M) -> 0 | X14: =SUMIF('(11) immat jav beszerz'!$S:$S,$B14,'(11) immat jav beszerz'!$P:$P) -> 0 | Y14: =SUMIF('(13) műszaki berendezések'!$S:$S,$B14,'(13) műszaki berendezések'!$P:$P) -> 0 | Z14: =SUMIF('(14) egyéb berendezések'!$S:$S,$B14,'(14) egyéb berendezések'!$P:$P) -> 0 | AA14: =SUMIF('(16) beruházás,felújítás'!$S:$S,$B14,'(16) beruházás,felújítás'!$P:$P) -> 0 | AB14: 0 | AE14: 7 | AF14: D.M./Piac | AG14: 0 | AH14: =SUMIF('(54-56) személyi+járulék'!AX:AX,AF14,'(54-56) személyi+járulék'!$P:$P) -> 0 | AI14: =SUMIF('(54-56) személyi+járulék'!$T:$T,AF14,'(54-56) személyi+járulék'!$S:$S) -> 0 | AJ14: =SUMIF('(51) anyagköltség '!$P:$P,AF14,'(51) anyagköltség '!$N:$N) -> 0 | AK14: =SUMIF('(52) igénybe vett szolg'!$P:$P,AF14,'(52) igénybe vett szolg'!$N:$N) -> 0 | AL14: =SUMIF('(53) egyéb szolgáltatások'!$P:$P,$B14,'(52) igénybe vett szolg'!$N:$N) -> 0 | AM14: =SUMIF('(11) immat jav beszerz'!$S:$S,$B14,'(11) immat jav beszerz'!$Q:$Q) -> 0 | AN14: =SUMIF('(13) műszaki berendezések'!$S:$S,$B14,'(13) műszaki berendezések'!$Q:$Q) -> 0 | AO14: =SUMIF('(14) egyéb berendezések'!$S:$S,$B14,'(14) egyéb berendezések'!$Q:$Q) -> 0 | AP14: =SUMIF('(16) beruházás,felújítás'!$S:$S,$B14,'(16) beruházás,felújítás'!$Q:$Q) -> 0 | AQ14: 0 | AS14: 7 | AT14: D.M./Piac | AU14: 0 | AV14: 0 | AW14: 0 | AX14: 0 | AY14: 0 | AZ14: 0 | BA14: 0 | BB14: 0 | BC14: 0 | BD14: 0 | BE14: 0
A15: 8 | B15: D.M./Iparjog | C15: 0 | D15: =SUMIF('(54-56) személyi+járulék'!$T:$T,B15,'(54-56) személyi+járulék'!$N:$N) -> 0 | E15: =SUMIF('(54-56) személyi+járulék'!$T:$T,B15,'(54-56) személyi+járulék'!$Q:$Q) -> 0 | F15: =SUMIF('(51) anyagköltség '!$P:$P,B15,'(51) anyagköltség '!$L:$L) -> 0 | G15: =SUMIF('(52) igénybe vett szolg'!$P:$P,B15,'(52) igénybe vett szolg'!$L:$L) -> 0 | H15: =SUMIF('(53) egyéb szolgáltatások'!$P:$P,$B15,'(52) igénybe vett szolg'!$L:$L) -> 0 | I15: =SUMIF('(11) immat jav beszerz'!$S:$S,$B15,'(11) immat jav beszerz'!$O:$O) -> 0 | J15: =SUMIF('(13) műszaki berendezések'!$S:$S,$B15,'(13) műszaki berendezések'!$O:$O) -> 0 | K15: =SUMIF('(14) egyéb berendezések'!$S:$S,$B15,'(14) egyéb berendezések'!$O:$O) -> 0 | L15: =SUMIF('(16) beruházás,felújítás'!$S:$S,$B15,'(16) beruházás,felújítás'!$O:$O) -> 0 | M15: 0 | P15: 8 | Q15: D.M./Iparjog | R15: 0 | S15: =SUMIF('(54-56) személyi+járulék'!$T:$T,Q15,'(54-56) személyi+járulék'!$O:$O) -> 0 | T15: =SUMIF('(54-56) személyi+járulék'!$T:$T,Q15,'(54-56) személyi+járulék'!$R:$R) -> 0 | U15: =SUMIF('(51) anyagköltség '!$P:$P,Q15,'(51) anyagköltség '!$M:$M) -> 0 | V15: =SUMIF('(52) igénybe vett szolg'!$P:$P,Q15,'(52) igénybe vett szolg'!$M:$M) -> 0 | W15: =SUMIF('(53) egyéb szolgáltatások'!$P:$P,$B15,'(52) igénybe vett szolg'!$M:$M) -> 0 | X15: =SUMIF('(11) immat jav beszerz'!$S:$S,$B15,'(11) immat jav beszerz'!$P:$P) -> 0 | Y15: =SUMIF('(13) műszaki berendezések'!$S:$S,$B15,'(13) műszaki berendezések'!$P:$P) -> 0 | Z15: =SUMIF('(14) egyéb berendezések'!$S:$S,$B15,'(14) egyéb berendezések'!$P:$P) -> 0 | AA15: =SUMIF('(16) beruházás,felújítás'!$S:$S,$B15,'(16) beruházás,felújítás'!$P:$P) -> 0 | AB15: 0 | AE15: 8 | AF15: D.M./Iparjog | AG15: 0 | AH15: =SUMIF('(54-56) személyi+járulék'!AX:AX,AF15,'(54-56) személyi+járulék'!$P:$P) -> 0 | AI15: =SUMIF('(54-56) személyi+járulék'!$T:$T,AF15,'(54-56) személyi+járulék'!$S:$S) -> 0 | AJ15: =SUMIF('(51) anyagköltség '!$P:$P,AF15,'(51) anyagköltség '!$N:$N) -> 0 | AK15: =SUMIF('(52) igénybe vett szolg'!$P:$P,AF15,'(52) igénybe vett szolg'!$N:$N) -> 0 | AL15: =SUMIF('(53) egyéb szolgáltatások'!$P:$P,$B15,'(52) igénybe vett szolg'!$N:$N) -> 0 | AM15: =SUMIF('(11) immat jav beszerz'!$S:$S,$B15,'(11) immat jav beszerz'!$Q:$Q) -> 0 | AN15: =SUMIF('(13) műszaki berendezések'!$S:$S,$B15,'(13) műszaki berendezések'!$Q:$Q) -> 0 | AO15: =SUMIF('(14) egyéb berendezések'!$S:$S,$B15,'(14) egyéb berendezések'!$Q:$Q) -> 0 | AP15: =SUMIF('(16) beruházás,felújítás'!$S:$S,$B15,'(16) beruházás,felújítás'!$Q:$Q) -> 0 | AQ15: 0 | AS15: 8 | AT15: D.M./Iparjog | AU15: 0 | AV15: 0 | AW15: 0 | AX15: 0 | AY15: 0 | AZ15: 0 | BA15: 0 | BB15: 0 | BC15: 0 | BD15: 0 | BE15: 0
A16: 9 | B16: D.M./Rezsi | C16: 0 | D16: =SUMIF('(54-56) személyi+járulék'!$T:$T,B16,'(54-56) személyi+járulék'!$N:$N) -> 0 | E16: =SUMIF('(54-56) személyi+járulék'!$T:$T,B16,'(54-56) személyi+járulék'!$Q:$Q) -> 0 | F16: =SUMIF('(51) anyagköltség '!$P:$P,B16,'(51) anyagköltség '!$L:$L) -> 0 | G16: =SUMIF('(52) igénybe vett szolg'!$P:$P,B16,'(52) igénybe vett szolg'!$L:$L) -> 0 | H16: =SUMIF('(53) egyéb szolgáltatások'!$P:$P,$B16,'(52) igénybe vett szolg'!$L:$L) -> 0 | I16: =SUMIF('(11) immat jav beszerz'!$S:$S,$B16,'(11) immat jav beszerz'!$O:$O) -> 0 | J16: =SUMIF('(13) műszaki berendezések'!$S:$S,$B16,'(13) műszaki berendezések'!$O:$O) -> 0 | K16: =SUMIF('(14) egyéb berendezések'!$S:$S,$B16,'(14) egyéb berendezések'!$O:$O) -> 0 | L16: =SUMIF('(16) beruházás,felújítás'!$S:$S,$B16,'(16) beruházás,felújítás'!$O:$O) -> 0 | M16: 0 | P16: 9 | Q16: D.M./Rezsi | R16: 0 | S16: =SUMIF('(54-56) személyi+járulék'!$T:$T,Q16,'(54-56) személyi+járulék'!$O:$O) -> 0 | T16: =SUMIF('(54-56) személyi+járulék'!$T:$T,Q16,'(54-56) személyi+járulék'!$R:$R) -> 0 | U16: =SUMIF('(51) anyagköltség '!$P:$P,Q16,'(51) anyagköltség '!$M:$M) -> 0 | V16: =SUMIF('(52) igénybe vett szolg'!$P:$P,Q16,'(52) igénybe vett szolg'!$M:$M) -> 0 | W16: =SUMIF('(53) egyéb szolgáltatások'!$P:$P,$B16,'(52) igénybe vett szolg'!$M:$M) -> 0 | X16: =SUMIF('(11) immat jav beszerz'!$S:$S,$B16,'(11) immat jav beszerz'!$P:$P) -> 0 | Y16: =SUMIF('(13) műszaki berendezések'!$S:$S,$B16,'(13) műszaki berendezések'!$P:$P) -> 0 | Z16: =SUMIF('(14) egyéb berendezések'!$S:$S,$B16,'(14) egyéb berendezések'!$P:$P) -> 0 | AA16: =SUMIF('(16) beruházás,felújítás'!$S:$S,$B16,'(16) beruházás,felújítás'!$P:$P) -> 0 | AB16: 0 | AE16: 9 | AF16: D.M./Rezsi | AG16: 0 | AH16: =SUMIF('(54-56) személyi+járulék'!AX:AX,AF16,'(54-56) személyi+járulék'!$P:$P) -> 0 | AI16: =SUMIF('(54-56) személyi+járulék'!$T:$T,AF16,'(54-56) személyi+járulék'!$S:$S) -> 0 | AJ16: =SUMIF('(51) anyagköltség '!$P:$P,AF16,'(51) anyagköltség '!$N:$N) -> 0 | AK16: =SUMIF('(52) igénybe vett szolg'!$P:$P,AF16,'(52) igénybe vett szolg'!$N:$N) -> 0 | AL16: =SUMIF('(53) egyéb szolgáltatások'!$P:$P,$B16,'(52) igénybe vett szolg'!$N:$N) -> 0 | AM16: =SUMIF('(11) immat jav beszerz'!$S:$S,$B16,'(11) immat jav beszerz'!$Q:$Q) -> 0 | AN16: =SUMIF('(13) műszaki berendezések'!$S:$S,$B16,'(13) műszaki berendezések'!$Q:$Q) -> 0 | AO16: =SUMIF('(14) egyéb berendezések'!$S:$S,$B16,'(14) egyéb berendezések'!$Q:$Q) -> 0 | AP16: =SUMIF('(16) beruházás,felújítás'!$S:$S,$B16,'(16) beruházás,felújítás'!$Q:$Q) -> 0 | AQ16: 0 | AS16: 9 | AT16: D.M./Rezsi | AU16: 0 | AV16: 0 | AW16: 0 | AX16: 0 | AY16: 0 | AZ16: 0 | BA16: 0 | BB16: 0 | BC16: 0 | BD16: 0 | BE16: 0
A17: 10 | B17: D.M./Immat. | C17: 0 | D17: =SUMIF('(54-56) személyi+járulék'!$T:$T,B17,'(54-56) személyi+járulék'!$N:$N) -> 0 | E17: =SUMIF('(54-56) személyi+járulék'!$T:$T,B17,'(54-56) személyi+járulék'!$Q:$Q) -> 0 | F17: =SUMIF('(51) anyagköltség '!$P:$P,B17,'(51) anyagköltség '!$L:$L) -> 0 | G17: =SUMIF('(52) igénybe vett szolg'!$P:$P,B17,'(52) igénybe vett szolg'!$L:$L) -> 0 | H17: =SUMIF('(53) egyéb szolgáltatások'!$P:$P,$B17,'(52) igénybe vett szolg'!$L:$L) -> 0 | I17: =SUMIF('(11) immat jav beszerz'!$S:$S,$B17,'(11) immat jav beszerz'!$O:$O) -> 500 | J17: =SUMIF('(13) műszaki berendezések'!$S:$S,$B17,'(13) műszaki berendezések'!$O:$O) -> 0 | K17: =SUMIF('(14) egyéb berendezések'!$S:$S,$B17,'(14) egyéb berendezések'!$O:$O) -> 0 | L17: =SUMIF('(16) beruházás,felújítás'!$S:$S,$B17,'(16) beruházás,felújítás'!$O:$O) -> 0 | M17: =SUM(C17:L17) -> 500 | P17: 10 | Q17: D.M./Immat. | R17: 0 | S17: =SUMIF('(54-56) személyi+járulék'!$T:$T,Q17,'(54-56) személyi+járulék'!$O:$O) -> 0 | T17: =SUMIF('(54-56) személyi+járulék'!$T:$T,Q17,'(54-56) személyi+járulék'!$R:$R) -> 0 | U17: =SUMIF('(51) anyagköltség '!$P:$P,Q17,'(51) anyagköltség '!$M:$M) -> 0 | V17: =SUMIF('(52) igénybe vett szolg'!$P:$P,Q17,'(52) igénybe vett szolg'!$M:$M) -> 0 | W17: =SUMIF('(53) egyéb szolgáltatások'!$P:$P,$B17,'(52) igénybe vett szolg'!$M:$M) -> 0 | X17: =SUMIF('(11) immat jav beszerz'!$S:$S,$B17,'(11) immat jav beszerz'!$P:$P) -> 500 | Y17: =SUMIF('(13) műszaki berendezések'!$S:$S,$B17,'(13) műszaki berendezések'!$P:$P) -> 0 | Z17: =SUMIF('(14) egyéb berendezések'!$S:$S,$B17,'(14) egyéb berendezések'!$P:$P) -> 0 | AA17: =SUMIF('(16) beruházás,felújítás'!$S:$S,$B17,'(16) beruházás,felújítás'!$P:$P) -> 0 | AB17: =SUM(R17:AA17) -> 500 | AE17: 10 | AF17: D.M./Immat. | AG17: 0 | AH17: =SUMIF('(54-56) személyi+járulék'!AX:AX,AF17,'(54-56) személyi+járulék'!$P:$P) -> 0 | AI17: =SUMIF('(54-56) személyi+járulék'!$T:$T,AF17,'(54-56) személyi+járulék'!$S:$S) -> 0 | AJ17: =SUMIF('(51) anyagköltség '!$P:$P,AF17,'(51) anyagköltség '!$N:$N) -> 0 | AK17: =SUMIF('(52) igénybe vett szolg'!$P:$P,AF17,'(52) igénybe vett szolg'!$N:$N) -> 0 | AL17: =SUMIF('(53) egyéb szolgáltatások'!$P:$P,$B17,'(52) igénybe vett szolg'!$N:$N) -> 0 | AM17: =SUMIF('(11) immat jav beszerz'!$S:$S,$B17,'(11) immat jav beszerz'!$Q:$Q) -> 0 | AN17: =SUMIF('(13) műszaki berendezések'!$S:$S,$B17,'(13) műszaki berendezések'!$Q:$Q) -> 0 | AO17: =SUMIF('(14) egyéb berendezések'!$S:$S,$B17,'(14) egyéb berendezések'!$Q:$Q) -> 0 | AP17: =SUMIF('(16) beruházás,felújítás'!$S:$S,$B17,'(16) beruházás,felújítás'!$Q:$Q) -> 0 | AQ17: =SUM(AG17:AP17) -> 0 | AS17: 10 | AT17: D.M./Immat. | AU17: 0 | AV17: =+D17+S17+AH17 -> 0 | AW17: =+E17+T17+AI17 -> 0 | AX17: =+F17+U17+AJ17 -> 0 | AY17: =+G17+V17+AK17 -> 0 | AZ17: =+H17+W17+AL17 -> 0 | BA17: =+I17+X17+AM17 -> 1000 | BB17: =+J17+Y17+AN17 -> 0 | BC17: =+K17+Z17+AO17 -> 0 | BD17: =+L17+AA17+AP17 -> 0 | BE17: =SUM(AU17:BD17) -> 1000
A18: 11 | B18: D.M./Eszköz. műszaki | C18: 0 | D18: =SUMIF('(54-56) személyi+járulék'!$T:$T,B18,'(54-56) személyi+járulék'!$N:$N) -> 0 | E18: =SUMIF('(54-56) személyi+járulék'!$T:$T,B18,'(54-56) személyi+járulék'!$Q:$Q) -> 0 | F18: =SUMIF('(51) anyagköltség '!$P:$P,B18,'(51) anyagköltség '!$L:$L) -> 0 | G18: =SUMIF('(52) igénybe vett szolg'!$P:$P,B18,'(52) igénybe vett szolg'!$L:$L) -> 0 | H18: =SUMIF('(53) egyéb szolgáltatások'!$P:$P,$B18,'(52) igénybe vett szolg'!$L:$L) -> 0 | I18: =SUMIF('(11) immat jav beszerz'!$S:$S,$B18,'(11) immat jav beszerz'!$O:$O) -> 0 | J18: =SUMIF('(13) műszaki berendezések'!$S:$S,$B18,'(13) műszaki berendezések'!$O:$O) -> 0 | K18: =SUMIF('(14) egyéb berendezések'!$S:$S,$B18,'(14) egyéb berendezések'!$O:$O) -> 0 | L18: =SUMIF('(16) beruházás,felújítás'!$S:$S,$B18,'(16) beruházás,felújítás'!$O:$O) -> 0 | M18: 0 | P18: 11 | Q18: D.M./Eszköz. műszaki | R18: 0 | S18: =SUMIF('(54-56) személyi+járulék'!$T:$T,Q18,'(54-56) személyi+járulék'!$O:$O) -> 0 | T18: =SUMIF('(54-56) személyi+járulék'!$T:$T,Q18,'(54-56) személyi+járulék'!$R:$R) -> 0 | U18: =SUMIF('(51) anyagköltség '!$P:$P,Q18,'(51) anyagköltség '!$M:$M) -> 0 | V18: =SUMIF('(52) igénybe vett szolg'!$P:$P,Q18,'(52) igénybe vett szolg'!$M:$M) -> 0 | W18: =SUMIF('(53) egyéb szolgáltatások'!$P:$P,$B18,'(52) igénybe vett szolg'!$M:$M) -> 0 | X18: =SUMIF('(11) immat jav beszerz'!$S:$S,$B18,'(11) immat jav beszerz'!$P:$P) -> 0 | Y18: =SUMIF('(13) műszaki berendezések'!$S:$S,$B18,'(13) műszaki berendezések'!$P:$P) -> 0 | Z18: =SUMIF('(14) egyéb berendezések'!$S:$S,$B18,'(14) egyéb berendezések'!$P:$P) -> 0 | AA18: =SUMIF('(16) beruházás,felújítás'!$S:$S,$B18,'(16) beruházás,felújítás'!$P:$P) -> 0 | AB18: 0 | AE18: 11 | AF18: D.M./Eszköz. műszaki | AG18: 0 | AH18: =SUMIF('(54-56) személyi+járulék'!AX:AX,AF18,'(54-56) személyi+járulék'!$P:$P) -> 0 | AI18: =SUMIF('(54-56) személyi+járulék'!$T:$T,AF18,'(54-56) személyi+járulék'!$S:$S) -> 0 | AJ18: =SUMIF('(51) anyagköltség '!$P:$P,AF18,'(51) anyagköltség '!$N:$N) -> 0 | AK18: =SUMIF('(52) igénybe vett szolg'!$P:$P,AF18,'(52) igénybe vett szolg'!$N:$N) -> 0 | AL18: =SUMIF('(53) egyéb szolgáltatások'!$P:$P,$B18,'(52) igénybe vett szolg'!$N:$N) -> 0 | AM18: =SUMIF('(11) immat jav beszerz'!$S:$S,$B18,'(11) immat jav beszerz'!$Q:$Q) -> 0 | AN18: =SUMIF('(13) műszaki berendezések'!$S:$S,$B18,'(13) műszaki berendezések'!$Q:$Q) -> 0 | AO18: =SUMIF('(14) egyéb berendezések'!$S:$S,$B18,'(14) egyéb berendezések'!$Q:$Q) -> 0 | AP18: =SUMIF('(16) beruházás,felújítás'!$S:$S,$B18,'(16) beruházás,felújítás'!$Q:$Q) -> 0 | AQ18: 0 | AS18: 11 | AT18: D.M./Eszköz. műszaki | AU18: 0 | AV18: =+D18+S18+AH18 -> 0 | AW18: 0 | AX18: 0 | AY18: 0 | AZ18: 0 | BA18: 0 | BB18: 0 | BC18: 0 | BD18: 0 | BE18: 0
A19: 12 | B19: D.M./Eszköz. egyéb | C19: 0 | D19: =SUMIF('(54-56) személyi+járulék'!$T:$T,B19,'(54-56) személyi+járulék'!$N:$N) -> 0 | E19: =SUMIF('(54-56) személyi+járulék'!$T:$T,B19,'(54-56) személyi+járulék'!$Q:$Q) -> 0 | F19: =SUMIF('(51) anyagköltség '!$P:$P,B19,'(51) anyagköltség '!$L:$L) -> 0 | G19: =SUMIF('(52) igénybe vett szolg'!$P:$P,B19,'(52) igénybe vett szolg'!$L:$L) -> 0 | H19: =SUMIF('(53) egyéb szolgáltatások'!$P:$P,$B19,'(52) igénybe vett szolg'!$L:$L) -> 0 | I19: =SUMIF('(11) immat jav beszerz'!$S:$S,$B19,'(11) immat jav beszerz'!$O:$O) -> 0 | J19: =SUMIF('(13) műszaki berendezések'!$S:$S,$B19,'(13) műszaki berendezések'!$O:$O) -> 0 | K19: =SUMIF('(14) egyéb berendezések'!$S:$S,$B19,'(14) egyéb berendezések'!$O:$O) -> 0 | L19: =SUMIF('(16) beruházás,felújítás'!$S:$S,$B19,'(16) beruházás,felújítás'!$O:$O) -> 0 | M19: =SUM(C19:L19) -> 0 | P19: 12 | Q19: D.M./Eszköz. egyéb | R19: 0 | S19: =SUMIF('(54-56) személyi+járulék'!$T:$T,Q19,'(54-56) személyi+járulék'!$O:$O) -> 0 | T19: =SUMIF('(54-56) személyi+járulék'!$T:$T,Q19,'(54-56) személyi+járulék'!$R:$R) -> 0 | U19: =SUMIF('(51) anyagköltség '!$P:$P,Q19,'(51) anyagköltség '!$M:$M) -> 0 | V19: =SUMIF('(52) igénybe vett szolg'!$P:$P,Q19,'(52) igénybe vett szolg'!$M:$M) -> 0 | W19: =SUMIF('(53) egyéb szolgáltatások'!$P:$P,$B19,'(52) igénybe vett szolg'!$M:$M) -> 0 | X19: =SUMIF('(11) immat jav beszerz'!$S:$S,$B19,'(11) immat jav beszerz'!$P:$P) -> 0 | Y19: =SUMIF('(13) műszaki berendezések'!$S:$S,$B19,'(13) műszaki berendezések'!$P:$P) -> 0 | Z19: =SUMIF('(14) egyéb berendezések'!$S:$S,$B19,'(14) egyéb berendezések'!$P:$P) -> 0 | AA19: =SUMIF('(16) beruházás,felújítás'!$S:$S,$B19,'(16) beruházás,felújítás'!$P:$P) -> 0 | AB19: =SUM(R19:AA19) -> 0 | AE19: 12 | AF19: D.M./Eszköz. egyéb | AG19: 0 | AH19: =SUMIF('(54-56) személyi+járulék'!AX:AX,AF19,'(54-56) személyi+járulék'!$P:$P) -> 0 | AI19: =SUMIF('(54-56) személyi+járulék'!$T:$T,AF19,'(54-56) személyi+járulék'!$S:$S) -> 0 | AJ19: =SUMIF('(51) anyagköltség '!$P:$P,AF19,'(51) anyagköltség '!$N:$N) -> 0 | AK19: =SUMIF('(52) igénybe vett szolg'!$P:$P,AF19,'(52) igénybe vett szolg'!$N:$N) -> 0 | AL19: =SUMIF('(53) egyéb szolgáltatások'!$P:$P,$B19,'(52) igénybe vett szolg'!$N:$N) -> 0 | AM19: =SUMIF('(11) immat jav beszerz'!$S:$S,$B19,'(11) immat jav beszerz'!$Q:$Q) -> 0 | AN19: =SUMIF('(13) műszaki berendezések'!$S:$S,$B19,'(13) műszaki berendezések'!$Q:$Q) -> 0 | AO19: =SUMIF('(14) egyéb berendezések'!$S:$S,$B19,'(14) egyéb berendezések'!$Q:$Q) -> 0 | AP19: =SUMIF('(16) beruházás,felújítás'!$S:$S,$B19,'(16) beruházás,felújítás'!$Q:$Q) -> 0 | AQ19: =SUM(AG19:AP19) -> 0 | AS19: 12 | AT19: D.M./Eszköz. egyéb | AU19: 0
A20: 13 | B20: Kut.infra.- b.r. | C20: 0 | D20: =SUMIF('(54-56) személyi+járulék'!$T:$T,B20,'(54-56) személyi+járulék'!$N:$N) -> 0 | E20: =SUMIF('(54-56) személyi+járulék'!$T:$T,B20,'(54-56) személyi+járulék'!$Q:$Q) -> 0 | F20: =SUMIF('(51) anyagköltség '!$P:$P,B20,'(51) anyagköltség '!$L:$L) -> 0 | G20: =SUMIF('(52) igénybe vett szolg'!$P:$P,B20,'(52) igénybe vett szolg'!$L:$L) -> 0 | H20: =SUMIF('(53) egyéb szolgáltatások'!$P:$P,$B20,'(52) igénybe vett szolg'!$L:$L) -> 0 | I20: =SUMIF('(11) immat jav beszerz'!$S:$S,$B20,'(11) immat jav beszerz'!$O:$O) -> 0 | J20: =SUMIF('(13) műszaki berendezések'!$S:$S,$B20,'(13) műszaki berendezések'!$O:$O) -> 0 | K20: =SUMIF('(14) egyéb berendezések'!$S:$S,$B20,'(14) egyéb berendezések'!$O:$O) -> 0 | L20: =SUMIF('(16) beruházás,felújítás'!$S:$S,$B20,'(16) beruházás,felújítás'!$O:$O) -> 500 | M20: 500 | P20: 13 | Q20: Kut.infra.- b.r. | R20: 0 | S20: =SUMIF('(54-56) személyi+járulék'!$T:$T,Q20,'(54-56) személyi+járulék'!$O:$O) -> 0 | T20: =SUMIF('(54-56) személyi+járulék'!$T:$T,Q20,'(54-56) személyi+járulék'!$R:$R) -> 0 | U20: =SUMIF('(51) anyagköltség '!$P:$P,Q20,'(51) anyagköltség '!$M:$M) -> 0 | V20: =SUMIF('(52) igénybe vett szolg'!$P:$P,Q20,'(52) igénybe vett szolg'!$M:$M) -> 0 | W20: =SUMIF('(53) egyéb szolgáltatások'!$P:$P,$B20,'(52) igénybe vett szolg'!$M:$M) -> 0 | X20: =SUMIF('(11) immat jav beszerz'!$S:$S,$B20,'(11) immat jav beszerz'!$P:$P) -> 0 | Y20: =SUMIF('(13) műszaki berendezések'!$S:$S,$B20,'(13) műszaki berendezések'!$P:$P) -> 0 | Z20: =SUMIF('(14) egyéb berendezések'!$S:$S,$B20,'(14) egyéb berendezések'!$P:$P) -> 0 | AA20: =SUMIF('(16) beruházás,felújítás'!$S:$S,$B20,'(16) beruházás,felújítás'!$P:$P) -> 500 | AB20: 500 | AE20: 13 | AF20: Kut.infra.- b.r. | AG20: 0 | AH20: =SUMIF('(54-56) személyi+járulék'!AX:AX,AF20,'(54-56) személyi+járulék'!$P:$P) -> 0 | AI20: =SUMIF('(54-56) személyi+járulék'!$T:$T,AF20,'(54-56) személyi+járulék'!$S:$S) -> 0 | AJ20: =SUMIF('(51) anyagköltség '!$P:$P,AF20,'(51) anyagköltség '!$N:$N) -> 0 | AK20: =SUMIF('(52) igénybe vett szolg'!$P:$P,AF20,'(52) igénybe vett szolg'!$N:$N) -> 0 | AL20: =SUMIF('(53) egyéb szolgáltatások'!$P:$P,$B20,'(52) igénybe vett szolg'!$N:$N) -> 0 | AM20: =SUMIF('(11) immat jav beszerz'!$S:$S,$B20,'(11) immat jav beszerz'!$Q:$Q) -> 0 | AN20: =SUMIF('(13) műszaki berendezések'!$S:$S,$B20,'(13) műszaki berendezések'!$Q:$Q) -> 0 | AO20: =SUMIF('(14) egyéb berendezések'!$S:$S,$B20,'(14) egyéb berendezések'!$Q:$Q) -> 0 | AP20: =SUMIF('(16) beruházás,felújítás'!$S:$S,$B20,'(16) beruházás,felújítás'!$Q:$Q) -> 0 | AQ20: 0 | AS20: 13 | AT20: D.M./Eszköz. egyéb | AU20: 0 | AV20: 0 | AW20: 0 | AX20: 0 | AY20: 0 | AZ20: 0 | BA20: 0 | BB20: 0 | BC20: 0 | BD20: 1000 | BE20: 1000
A21: 14 | B21: Nem állami támogatás | C21: 0 | D21: =SUMIF('(54-56) személyi+járulék'!$T:$T,B21,'(54-56) személyi+járulék'!$N:$N) -> 0 | E21: =SUMIF('(54-56) személyi+járulék'!$T:$T,B21,'(54-56) személyi+járulék'!$Q:$Q) -> 0 | F21: =SUMIF('(51) anyagköltség '!$P:$P,B21,'(51) anyagköltség '!$L:$L) -> 0 | G21: =SUMIF('(52) igénybe vett szolg'!$P:$P,B21,'(52) igénybe vett szolg'!$L:$L) -> 0 | H21: =SUMIF('(53) egyéb szolgáltatások'!$P:$P,$B21,'(52) igénybe vett szolg'!$L:$L) -> 0 | I21: =SUMIF('(11) immat jav beszerz'!$S:$S,$B21,'(11) immat jav beszerz'!$O:$O) -> 0 | J21: =SUMIF('(13) műszaki berendezések'!$S:$S,$B21,'(13) műszaki berendezések'!$O:$O) -> 0 | K21: =SUMIF('(14) egyéb berendezések'!$S:$S,$B21,'(14) egyéb berendezések'!$O:$O) -> 0 | L21: =SUMIF('(16) beruházás,felújítás'!$S:$S,$B21,'(16) beruházás,felújítás'!$O:$O) -> 0 | M21: 0 | P21: 14 | Q21: Nem állami támogatás | R21: 0 | S21: =SUMIF('(54-56) személyi+járulék'!$T:$T,Q21,'(54-56) személyi+járulék'!$O:$O) -> 0 | T21: =SUMIF('(54-56) személyi+járulék'!$T:$T,Q21,'(54-56) személyi+járulék'!$R:$R) -> 0 | U21: =SUMIF('(51) anyagköltség '!$P:$P,Q21,'(51) anyagköltség '!$M:$M) -> 0 | V21: =SUMIF('(52) igénybe vett szolg'!$P:$P,Q21,'(52) igénybe vett szolg'!$M:$M) -> 0 | W21: =SUMIF('(53) egyéb szolgáltatások'!$P:$P,$B21,'(52) igénybe vett szolg'!$M:$M) -> 0 | X21: =SUMIF('(11) immat jav beszerz'!$S:$S,$B21,'(11) immat jav beszerz'!$P:$P) -> 0 | Y21: =SUMIF('(13) műszaki berendezések'!$S:$S,$B21,'(13) műszaki berendezések'!$P:$P) -> 0 | Z21: =SUMIF('(14) egyéb berendezések'!$S:$S,$B21,'(14) egyéb berendezések'!$P:$P) -> 0 | AA21: =SUMIF('(16) beruházás,felújítás'!$S:$S,$B21,'(16) beruházás,felújítás'!$P:$P) -> 0 | AB21: 0 | AE21: 14 | AF21: Nem állami támogatás | AG21: 0 | AH21: =SUMIF('(54-56) személyi+járulék'!AX:AX,AF21,'(54-56) személyi+járulék'!$P:$P) -> 0 | AI21: =SUMIF('(54-56) személyi+járulék'!$T:$T,AF21,'(54-56) személyi+járulék'!$S:$S) -> 0 | AJ21: =SUMIF('(51) anyagköltség '!$P:$P,AF21,'(51) anyagköltség '!$N:$N) -> 0 | AK21: =SUMIF('(52) igénybe vett szolg'!$P:$P,AF21,'(52) igénybe vett szolg'!$N:$N) -> 0 | AL21: =SUMIF('(53) egyéb szolgáltatások'!$P:$P,$B21,'(52) igénybe vett szolg'!$N:$N) -> 0 | AM21: =SUMIF('(11) immat jav beszerz'!$S:$S,$B21,'(11) immat jav beszerz'!$Q:$Q) -> 0 | AN21: =SUMIF('(13) műszaki berendezések'!$S:$S,$B21,'(13) műszaki berendezések'!$Q:$Q) -> 0 | AO21: =SUMIF('(14) egyéb berendezések'!$S:$S,$B21,'(14) egyéb berendezések'!$Q:$Q) -> 0 | AP21: =SUMIF('(16) beruházás,felújítás'!$S:$S,$B21,'(16) beruházás,felújítás'!$Q:$Q) -> 0 | AQ21: 0 | AS21: 14 | AT21: Nem állami támogatás | AU21: 0 | AV21: 0 | AW21: 0 | AX21: 0 | AY21: 0 | AZ21: 0 | BA21: 0 | BB21: 0 | BC21: 0 | BD21: 0 | BE21: 0
A23: elszámolt költségek összegzése: | D23: =SUM(D8:D21) -> 6000 | E23: =SUM(E8:E21) -> 2000 | F23: 0 | G23: 500 | H23: 500 | I23: 500 | J23: 500 | K23: 500 | L23: =SUM(L8:L21) -> 500 | M23: =SUM(M8:M21) -> 11000 | P23: elszámolt költségek összegzése: | S23: =SUM(S8:S21) -> 0 | T23: =SUM(T8:T21) -> 0 | U23: 0 | V23: 500 | W23: 500 | X23: 500 | Y23: 500 | Z23: 500 | AA23: =SUM(AA8:AA21) -> 500 | AB23: =SUM(AB8:AB21) -> 3000 | AE23: elszámolt költségek összegzése: | AH23: =SUM(AH8:AH21) -> 0 | AI23: =SUM(AI8:AI21) -> 0 | AJ23: 0 | AK23: 0 | AL23: 0 | AM23: 0 | AN23: 0 | AO23: 0 | AP23: =SUM(AP8:AP21) -> 0 | AQ23: =SUM(AQ8:AQ21) -> 0 | AS23: elszámolt költségek összegzése: | AV23: =SUM(AV8:AV21) -> 6000 | AW23: =SUM(AW8:AW21) -> 2000 | AX23: 0 | AY23: 1000 | AZ23: 1000 | BA23: 1000 | BB23: 1000 | BC23: 1000 | BD23: 1000 | BE23: =SUM(BE8:BE22) -> 14000
A24: költségösszegzés a számlaösszesítők alapján: | D24: ='(54-56) személyi+járulék'!N26 -> 7100 | E24: ='(54-56) személyi+járulék'!Q26 -> 2200 | F24: ='(51) anyagköltség '!L28 -> 500 | G24: ='(52) igénybe vett szolg'!L28 -> 500 | H24: =+'(53) egyéb szolgáltatások'!L25 -> 500 | I24: ='(11) immat jav beszerz'!O27 -> 500 | J24: ='(13) műszaki berendezések'!O27 -> 500 | K24: =+'(14) egyéb berendezések'!O27 -> 500 | L24: ='(16) beruházás,felújítás'!O27 -> 500 | M24: =SUM(D24:L24) -> 12800 | P24: költségösszegzés a számlaösszesítők alapján: | S24: =+'(54-56) személyi+járulék'!O26 -> 0 | T24: =+'(54-56) személyi+járulék'!R26 -> 0 | U24: =+'(51) anyagköltség '!M28 -> 500 | V24: =+'(52) igénybe vett szolg'!M28 -> 500 | W24: =+'(53) egyéb szolgáltatások'!M25 -> 500 | X24: =+'(11) immat jav beszerz'!P27 -> 500 | Y24: =+'(13) műszaki berendezések'!P27 -> 500 | Z24: =+'(14) egyéb berendezések'!P27 -> 500 | AA24: =+'(16) beruházás,felújítás'!P27 -> 500 | AB24: =SUM(S24:AA24) -> 3500 | AE24: költségösszegzés a számlaösszesítők alapján: | AH24: =+'(54-56) személyi+járulék'!P26 -> 0 | AI24: =+'(54-56) személyi+járulék'!S26 -> 0 | AJ24: =+'(51) anyagköltség '!N28 -> 0 | AK24: =+'(52) igénybe vett szolg'!N28 -> 0 | AL24: =+'(53) egyéb szolgáltatások'!N25 -> 0 | AM24: =+'(11) immat jav beszerz'!Q27 -> 0 | AN24: =+'(13) műszaki berendezések'!Q27 -> 0 | AO24: =+'(14) egyéb berendezések'!Q27 -> 0 | AP24: =+'(16) beruházás,felújítás'!Q27 -> 0 | AQ24: =SUM(AH24:AP24) -> 0 | AS24: költségösszegzés a számlaösszesítők alapján: | AV24: =+'(54-56) személyi+járulék'!N26+'(54-56) személyi+járulék'!O26+'(54-56) személyi+járulék'!P26 -> 7100 | AW24: =+'(54-56) személyi+járulék'!Q26+'(54-56) személyi+járulék'!R26+'(54-56) személyi+járulék'!S26 -> 2200 | AX24: =+'(51) anyagköltség '!O28 -> 1000 | AY24: =+'(52) igénybe vett szolg'!O28 -> 1000 | AZ24: =+'(53) egyéb szolgáltatások'!O25 -> 1000 | BA24: =+'(11) immat jav beszerz'!R27 -> 1000 | BB24: =+'(13) műszaki berendezések'!R27 -> 1000 | BC24: =+'(14) egyéb berendezések'!R27 -> 1000 | BD24: =+'(16) beruházás,felújítás'!R27 -> 1000 | BE24: =SUM(AV24:BD24) -> 16300

Sheet (LNY) lemondó nyilatkozat
A2: Egy példányban kitöltve, eredeti aláírással és bélyegzéssel ellátva kell benyújtani.
A7: Lemondó Nyilatkozat
A11: Kedvezményezett neve | B11: =+'(54-56) személyi+járulék'!G1 -> XY Kft.
A12: Szerződésszám | B12: =+'(54-56) személyi+járulék'!G2 -> 2018-1.1.1-VKE-2018-00001
A13: Mérföldkő dátuma: | B13: =+'(54-56) személyi+járulék'!G3 -> 2018-12-31
A16: Alulírott <név>, mint a <kedvezményezett megnevezése> társaság/szervezet cégjegyzésre jogosult vezetője nyilatkozom, hogy a fenti azonosító számú projekt megvalósításához a megítélt támogatásból összesen <a ténylegesen elszámolt támogatás összege> Ft került felhasználásra. A fennmaradó <a megítélt és a tényleges támogatás különbsége> Ft támogatást a továbbiakban nem kívánom igénybe venni, így arról lemondok.
A19: Hely, dátum
B23: ………………………………
B24: Kedvezményezett cégszerű *
B25: aláírása
B26: Ph.
A31: * Az aláírók nevét nyomtatott betűkkel is kérjük kitölteni

Sheet támogatás típusai (hidden)
A2: támogatás típus rövídítése | B2: támogatás típusa
A4: K+F/Alap. | B4: Alapkutatás | C4: Kutatás-fejlesztési projekthez nyújtott támogatás
A5: K+F/Alkalm. | B5: Alkalmazott (ipari) kutatás
A6: K+F/Kis.fejl. | B6: Kísérleti fejlesztés
A7: D.M./Közbesz. | B7: Közbeszerzés | C7: De minimis támogatás
A8: D.M./Koord. | B8: Koordinációs költség
A9: D.M./Tájék. | B9: Tájékoztatási költség
A10: D.M./Piac | B10: Piacra jutáshoz kapcsolódó költségek
A11: D.M./Iparjog | B11: Iparjogvédelemmel kapcsolatos költségek
A12: D.M./Rezsi | B12: Általános (rezsi) költségek
A13: Kut.infra.- b.r. | B13: Kutatási infrastruktúrához nyújtott beruházási támogatás | C13: Kutatási infrastruktúrához nyújtott beruházási támogatás
A14: Nem állami támogatás | B14: Nem állami támogatás

Sheet Támogatás típusa
A2: támogatás típus rövídítése | B2: támogatás típusa
A4: K+F/Alap. | B4: Alapkutatás | C4: Kutatás-fejlesztési projekthez nyújtott támogatás
A5: K+F/Alkalm. | B5: Alkalmazott (ipari) kutatás
A6: K+F/Kis.fejl. | B6: Kísérleti fejlesztés
A7: D.M./Közbesz. | B7: Közbeszerzés | C7: De minimis támogatás
A8: D.M./Koord. | B8: Koordinációs költség
A9: D.M./Tájék. | B9: Tájékoztatási költség
A10: D.M./Piac | B10: Piacra jutáshoz kapcsolódó költségek
A11: D.M./Iparjog | B11: Iparjogvédelemmel kapcsolatos költségek
A12: D.M./Rezsi | B12: Általános (rezsi) költségek
A13: D.M./Immat. | B13: Immateriális javak beszerzése
A14: D.M./Eszköz. műszaki | B14: Eszközbeszerzés (műszaki berendezések)
A15: D.M./Eszköz. egyéb | B15: Eszközbeszerzés (egyéb berendezések)
A16: Kut.infra.- b.r. | B16: Kutatási infrastruktúrához nyújtott beruházási támogatás | C16: Kutatási infrastruktúrához nyújtott beruházási támogatás
A17: Nem állami támogatás | B17: Nem állami támogatás | C17: Nem állami támogatás
